bitfinex-derivatives/quotes_BNBF0:USTF0_20250128
["timestamp","ask_amount","ask_price","bid_price","bid_amount"]
[1738072109195,1.97845808,672.32,670.81,0.29814701]
[1738072109396,1.97845808,672.31,670.81,0.29814701]
[1738072109698,1.97845808,672.3,670.81,0.29814701]
[1738072109897,1.97845808,672.29,670.81,0.29814701]
[1738072110198,1.97845808,672.28,670.81,0.29814701]
[1738072110399,1.97845808,672.27,670.81,0.29814701]
[1738072110593,2.84834675,672.26,670.88,1.04687993]
[1738072110791,1.97845808,672.25,670.9,0.29810702]
[1738072110995,0.82525023,672.24,670.9,0.29810702]
[1738072111192,0.82525023,672.23,670.9,0.29810702]
[1738072111394,0.82525023,672.22,670.9,0.29810702]
[1738072111589,0.82510896,672.21,670.9,0.29810702]
[1738072111795,0.82510896,672.2,670.9,0.29810702]
[1738072111992,1.55391829,672.65,670.9,0.29810702]
[1738072112197,1.97812607,672.64,670.9,0.29810702]
[1738072112399,1.97812607,672.63,670.9,0.29810702]
[1738072112694,1.97812607,672.62,670.94,1.04687993]
[1738072112898,2.2515001,672.61,670.94,1.04687993]
[1738072113121,1.97812607,672.6,670.94,1.04687993]
[1738072113300,1.97812607,672.59,670.94,1.04687993]
[1738072113491,1.97812607,672.58,670.94,1.04687993]
[1738072113691,1.97812607,672.57,670.96,0.29808036]
[1738072113893,1.97812607,672.56,670.96,0.29808036]
[1738072114091,1.97812607,672.55,670.96,0.29808036]
[1738072114292,1.97812607,672.54,670.96,0.29808036]
[1738072114493,1.97812607,672.53,670.96,0.29808036]
[1738072114797,2.84820987,672.52,670.96,0.29808036]
[1738072114998,1.97812607,672.51,670.96,0.29808036]
[1738072115200,1.97812607,672.5,670.96,0.29808036]
[1738072115401,1.97812607,672.49,671.16,1.04687993]
[1738072115599,1.97812607,672.48,671.18,0.29798265]
[1738072115794,1.97812607,672.47,671.18,0.29798265]
[1738072116000,1.97812607,672.46,671.18,0.29798265]
[1738072116213,0.82504083,672.45,671.18,0.29798265]
[1738072116395,0.82504083,672.44,671.18,0.29798265]
[1738072116702,0.82504083,672.43,671.18,0.29798265]
[1738072116901,0.82504083,672.42,671.18,0.29798265]
[1738072117199,0.82504083,672.41,671.18,0.29798265]
[1738072117395,0.82504083,672.4,671.18,0.29798265]
[1738072117595,0.82504083,672.39,671.18,0.29798265]
[1738072117798,0.82504083,672.38,671.18,0.29798265]
[1738072117994,0.82504083,672.37,671.18,0.29798265]
[1738072118299,0.82504083,672.36,671.18,0.29798265]
[1738072118600,0.82504083,672.35,671.18,0.29798265]
[1738072118803,0.82504083,672.34,671.38,1.04687993]
[1738072119102,0.82504083,672.33,671.38,1.34477382]
[1738072119396,0.82504083,672.32,671.38,1.34477382]
[1738072119600,0.82571592,672.31,671.38,1.34477382]
[1738072119796,0.82571592,672.3,671.38,1.34477382]
[1738072119994,0.82571592,672.29,671.38,1.34477382]
[1738072120200,0.82571592,672.28,671.38,1.34477382]
[1738072120500,0.82571592,672.27,671.38,1.34477382]
[1738072120800,0.82571592,672.26,671.38,1.34477382]
[1738072121101,0.82571592,672.25,671.38,1.34477382]
[1738072121297,0.82571592,672.24,671.38,1.34477382]
[1738072121498,0.82571592,672.23,671.38,0.29789389]
[1738072121699,1.5534674,672.77,671.38,0.29789389]
[1738072121700,0.82581927,672.22,671.38,0.29789389]
[1738072121899,0.82581927,672.21,671.38,0.29789389]
[1738072122194,0.82581927,672.2,671.38,0.29789389]
[1738072122395,0.82581927,672.19,671.38,0.29789389]
[1738072122601,1.5534674,672.77,671.38,0.29789389]
[1738072122900,2.55094168,672.76,671.38,0.29789389]
[1738072123101,2.5509461,672.75,671.38,0.29789389]
[1738072123402,2.55095052,672.74,671.38,0.29789389]
[1738072123601,2.55095494,672.73,671.38,0.29789389]
[1738072123800,2.55095936,672.72,671.38,0.29789389]
[1738072124100,1.5534674,672.77,671.38,0.29789389]
[1738072124101,3.42211515,672.71,671.38,0.29789389]
[1738072124301,2.5509682,672.7,671.38,0.29789389]
[1738072124602,2.55097262,672.69,671.38,0.29789389]
[1738072124796,2.55097703,672.68,671.38,0.29789389]
[1738072125104,2.55098145,672.67,671.38,0.29789389]
[1738072125302,2.55098588,672.66,671.38,0.29789389]
[1738072125509,2.5509903,672.65,671.38,0.29789389]
[1738072125698,2.55099472,672.64,671.38,0.29789389]
[1738072125896,3.42215051,672.63,671.38,0.29789389]
[1738072126096,2.25365885,672.62,671.38,0.29789389]
[1738072126301,2.25365885,672.61,671.38,0.29789389]
[1738072126500,3.12481022,672.6,671.38,0.29789389]
[1738072126698,2.25365885,672.59,671.38,0.29789389]
[1738072127001,2.85141903,672.58,671.38,0.29789389]
[1738072127204,2.25367378,672.57,671.38,0.29789389]
[1738072127505,2.25367378,672.56,671.38,0.29789389]
[1738072127705,2.25367378,672.55,671.38,0.29789389]
[1738072127898,2.25367378,672.54,671.38,0.29789389]
[1738072128100,2.25367378,672.53,671.38,0.29789389]
[1738072128302,2.25367378,672.52,671.38,0.29789389]
[1738072128504,1.98026766,672.51,671.38,0.29789389]
[1738072128703,1.98026766,672.5,671.38,0.29789389]
[1738072128904,1.55354831,672.61,671.38,0.29789389]
[1738072128905,2.85141903,672.49,671.38,0.29789389]
[1738072129101,1.98026766,672.48,671.38,0.29789389]
[1738072129303,1.98026766,672.47,671.38,0.29789389]
[1738072129506,1.98026766,672.46,671.38,0.29789389]
[1738072129705,1.98026766,672.45,671.4,1.04687993]
[1738072129909,1.98026766,672.44,671.4,1.04687993]
[1738072130206,1.98026766,672.43,671.4,1.04687993]
[1738072130400,1.98026766,672.42,671.4,1.04687993]
[1738072130611,1.98026766,672.41,671.4,1.04687993]
[1738072130803,1.98026766,672.4,671.4,1.04687993]
[1738072131104,2.85141903,672.39,671.4,1.04687993]
[1738072131310,1.98026766,672.38,671.4,1.04687993]
[1738072131505,2.85141903,672.37,671.4,1.04687993]
[1738072131701,1.98252914,672.36,671.4,1.04687993]
[1738072131908,1.98252914,672.35,671.4,1.04687993]
[1738072132208,1.98252914,672.34,671.44,1.04687993]
[1738072132406,1.98252914,672.33,671.44,1.04687993]
[1738072132602,1.98252914,672.32,671.44,1.04687993]
[1738072132806,1.98252914,672.31,671.44,1.04687993]
[1738072133012,0.82826384,672.3,671.44,1.04687993]
[1738072133207,0.82826384,672.29,671.44,1.04687993]
[1738072133408,0.82826384,672.28,671.44,1.04687993]
[1738072133604,0.82826384,672.27,671.44,1.04687993]
[1738072133810,0.82826384,672.26,671.44,1.04687993]
[1738072134005,0.82826384,672.25,671.44,1.04687993]
[1738072134308,1.55354831,672.61,671.44,1.04687993]
[1738072134309,0.82826384,672.24,671.44,1.04687993]
[1738072134509,0.82826384,672.23,671.44,1.04687993]
[1738072134704,0.82826384,672.22,671.44,1.04687993]
[1738072134909,0.82826384,672.21,671.44,1.04687993]
[1738072135115,0.82826384,672.2,671.44,1.04687993]
[1738072135307,0.82826384,672.19,671.44,1.04687993]
[1738072135509,0.82826384,672.18,671.44,1.04687993]
[1738072135712,1.55354831,672.61,671.44,1.04687993]
[1738072135913,1.55354831,672.61,671.38,0.29789389]
[1738072135914,2.26197158,672.6,671.52,1.04687993]
[1738072136114,2.26197158,672.59,671.52,1.04687993]
[1738072136307,2.26197158,672.58,671.52,1.04687993]
[1738072136615,2.26197158,672.57,671.52,1.04687993]
[1738072136814,1.98859269,672.56,671.52,1.04687993]
[1738072137012,1.98859269,672.55,671.52,1.04687993]
[1738072137211,1.98859269,672.54,671.52,1.04687993]
[1738072137412,0.8747141,672.57,671.52,1.04687993]
[1738072137413,1.98859269,672.53,671.52,1.04687993]
[1738072137614,2.86330679,672.52,671.52,1.04687993]
[1738072137814,1.98859269,672.51,671.52,1.04687993]
[1738072138014,1.98859269,672.5,671.52,1.04687993]
[1738072138214,1.98859269,672.49,671.52,1.04687993]
[1738072138413,1.98859269,672.49,671.38,0.29789389]
[1738072138414,1.98859269,672.48,671.6,1.04687993]
[1738072138613,1.98859269,672.47,671.6,1.04687993]
[1738072138914,2.86330679,672.46,671.6,1.04687993]
[1738072139109,1.98859269,672.45,671.6,1.04687993]
[1738072139309,1.98859269,672.44,671.6,1.04687993]
[1738072139516,1.98859269,672.43,671.6,1.04687993]
[1738072139811,2.8643813,672.42,671.6,1.04687993]
[1738072140013,1.9896672,672.41,671.6,1.04687993]
[1738072140313,1.9896672,672.4,671.6,1.04687993]
[1738072140518,1.9896672,672.39,671.6,1.04687993]
[1738072140820,1.9896672,672.38,671.6,1.04687993]
[1738072141034,1.9896672,672.37,671.38,0.29789389]
[1738072141317,2.5606205,672.36,671.04,1.04687993]
[1738072141520,2.56062492,672.35,671.04,1.04687993]
[1738072141719,2.56062935,672.34,671.04,1.04687993]
[1738072141921,2.26373817,672.33,671.04,1.04687993]
[1738072142118,1.99024456,672.32,671.04,1.04687993]
[1738072142319,1.99024456,672.31,671.04,1.04687993]
[1738072142519,2.86495866,672.3,671.04,1.04687993]
[1738072142714,1.99024456,672.29,671.04,1.04687993]
[1738072142919,2.86495866,672.28,671.04,1.04687993]
[1738072143120,1.99024456,672.27,671.04,1.04687993]
[1738072143324,2.86495866,672.26,671.04,1.04687993]
[1738072143522,1.99024456,672.25,671.04,1.04687993]
[1738072143824,2.86495866,672.24,671.04,1.04687993]
[1738072144020,1.99024456,672.23,671.04,1.04687993]
[1738072144220,1.99024456,672.22,671.04,1.04687993]
[1738072144418,1.99024456,672.21,671.04,1.04687993]
[1738072144619,1.99024456,672.21,670.43,1.04687993]
[1738072144620,2.28777505,672.2,671.26,1.04687993]
[1738072144820,2.28777948,672.19,671.26,1.04687993]
[1738072145021,2.56139376,672.18,671.26,1.04687993]
[1738072145219,2.56139819,672.17,671.26,1.04687993]
[1738072145416,2.56140262,672.16,671.26,1.04687993]
[1738072145617,2.56140704,672.15,671.26,1.04687993]
[1738072145821,2.56141147,672.14,671.26,1.04687993]
[1738072146021,1.99024456,672.13,671.26,1.04687993]
[1738072146221,1.99024456,672.12,671.26,1.04687993]
[1738072146420,1.99024456,672.11,671.26,1.04687993]
[1738072146628,1.99024456,672.1,671.26,1.04687993]
[1738072146825,1.99024456,672.09,671.26,1.04687993]
[1738072147020,1.99024456,672.08,671.26,1.04687993]
[1738072147227,1.99024456,672.07,671.26,1.04687993]
[1738072147527,1.99024456,672.07,670.68,2.13737987]
[1738072147528,1.99024456,672.06,670.76,1.04687993]
[1738072147718,1.99024456,672.05,670.77,0.29816479]
[1738072148025,1.99024456,672.04,670.77,0.29816479]
[1738072148325,2.86495866,672.03,670.77,0.29816479]
[1738072148520,1.99024456,672.02,670.77,0.29816479]
[1738072148721,1.99024456,672.01,670.77,0.29816479]
[1738072148920,1.99024456,672.0,670.77,0.29816479]
[1738072149125,1.16076493,671.99,670.77,0.29816479]
[1738072149351,1.99064741,671.98,670.77,0.29816479]
[1738072149526,1.99064741,671.97,670.77,0.29816479]
[1738072149727,1.99064741,671.96,670.77,0.29816479]
[1738072149921,0.8747141,671.97,670.77,0.29816479]
[1738072150125,1.15952559,671.95,670.77,0.29816479]
[1738072150325,0.8747141,671.97,670.77,0.29816479]
[1738072150527,0.82987833,671.96,670.77,0.29816479]
[1738072150727,0.8747141,671.97,670.77,0.29816479]
[1738072150927,1.15965774,671.96,670.77,0.29816479]
[1738072151825,0.8747141,671.97,670.77,0.29816479]
[1738072152031,0.83003376,671.96,670.78,1.55451987]
[1738072152229,0.83003376,671.95,670.8,0.29815146]
[1738072152464,0.83003376,671.94,670.8,0.29815146]
[1738072152628,0.83003376,671.93,670.8,0.29815146]
[1738072152936,0.83003376,671.92,670.8,0.29815146]
[1738072153131,0.83003376,671.91,670.8,0.29815146]
[1738072153331,0.83003376,671.9,670.8,0.29815146]
[1738072153535,0.83003376,671.89,670.8,0.29815146]
[1738072153729,0.83003376,671.88,670.8,0.29815146]
[1738072153928,0.83015756,671.87,670.8,0.29815146]
[1738072154128,0.83015756,671.86,670.8,0.29815146]
[1738072154329,0.83015756,671.85,670.8,0.29815146]
[1738072154624,0.83015756,671.84,670.8,0.29815146]
[1738072154830,0.83015756,671.83,670.8,0.29815146]
[1738072155033,0.83015756,671.82,671.01,1.04687993]
[1738072155329,0.83015756,671.81,671.01,1.04687993]
[1738072155530,0.83015756,671.8,671.01,1.04687993]
[1738072155826,0.29755705,672.14,671.01,1.04687993]
[1738072156031,1.99013043,672.13,671.02,0.2980537]
[1738072156332,1.99013043,672.12,671.02,0.2980537]
[1738072156525,1.99013043,672.11,671.02,0.2980537]
[1738072156729,1.99013043,672.1,671.02,0.2980537]
[1738072156936,1.99013043,672.09,671.02,0.2980537]
[1738072157130,1.99013043,672.08,671.02,0.2980537]
[1738072157334,1.99013043,672.07,671.02,0.2980537]
[1738072157535,1.99013043,672.06,671.02,0.2980537]
[1738072157833,2.86560481,672.05,671.02,0.2980537]
[1738072158037,1.99013043,672.04,671.02,0.2980537]
[1738072158237,1.99013043,672.03,671.02,0.2980537]
[1738072158532,2.86560481,672.02,671.02,0.2980537]
[1738072158732,1.99013043,672.01,671.02,0.2980537]
[1738072159034,2.86560481,672.0,671.02,0.2980537]
[1738072159334,1.99013043,671.99,671.02,0.2980537]
[1738072159536,1.99013043,671.98,671.02,0.2980537]
[1738072159735,1.99013043,671.97,671.02,0.2980537]
[1738072159934,2.86560481,671.96,671.02,0.2980537]
[1738072160136,1.99013043,671.95,671.02,0.2980537]
[1738072160342,0.83012045,671.94,671.02,0.2980537]
[1738072160538,0.83012045,671.93,671.02,0.2980537]
[1738072160740,0.83012045,671.92,671.02,0.2980537]
[1738072160937,0.83012045,671.91,671.02,0.2980537]
[1738072161139,0.83012045,671.9,671.02,0.2980537]
[1738072161334,0.29755705,672.14,671.02,0.2980537]
[1738072161335,0.83012045,671.89,671.02,0.2980537]
[1738072161536,0.83012045,671.88,671.02,0.2980537]
[1738072161740,0.83012045,671.87,671.02,0.2980537]
[1738072162037,0.82982736,671.86,671.02,0.2980537]
[1738072162233,0.82982736,671.85,671.02,0.2980537]
[1738072162433,0.82982736,671.84,671.02,0.2980537]
[1738072162640,0.82982736,671.83,671.02,0.2980537]
[1738072162939,0.82982736,671.82,671.02,0.2980537]
[1738072163138,0.82982736,671.81,671.02,0.2980537]
[1738072163437,0.82982736,671.8,671.02,0.2980537]
[1738072163638,0.82982736,671.79,671.02,0.2980537]
[1738072163838,0.82982736,671.78,671.02,0.2980537]
[1738072164044,0.29755705,672.14,671.02,0.2980537]
[1738072164340,1.98942631,672.13,671.02,0.2980537]
[1738072164542,2.86454092,672.12,671.02,0.2980537]
[1738072164740,1.98942631,672.11,671.02,0.2980537]
[1738072164943,2.86454092,672.1,671.02,0.2980537]
[1738072165144,1.98942631,672.09,671.02,0.2980537]
[1738072165340,1.98942631,672.08,671.02,0.2980537]
[1738072165538,1.98942631,672.07,671.02,0.2980537]
[1738072165735,1.98942631,672.06,671.02,0.2980537]
[1738072165940,1.98942631,672.05,671.02,0.2980537]
[1738072166142,1.98942631,672.04,671.02,0.2980537]
[1738072166338,1.98942631,672.03,671.02,0.2980537]
[1738072166537,1.98942631,672.02,671.02,0.2980537]
[1738072166738,1.98942631,672.01,671.02,0.2980537]
[1738072166941,1.98942631,672.0,671.02,0.2980537]
[1738072167138,1.98942631,671.99,671.02,0.2980537]
[1738072167343,1.98942631,671.98,671.02,0.2980537]
[1738072167539,1.98942631,671.97,671.02,0.2980537]
[1738072167738,1.98942631,671.96,671.02,0.2980537]
[1738072167939,0.82982701,671.95,671.02,0.2980537]
[1738072168138,0.87511461,671.97,671.02,0.2980537]
[1738072168139,0.82982701,671.94,671.02,0.2980537]
[1738072168345,1.70494162,671.93,671.02,0.2980537]
[1738072168540,0.82982701,671.92,671.02,0.2980537]
[1738072168743,0.82982701,671.91,671.02,0.2980537]
[1738072169055,0.82982701,671.9,671.02,0.2980537]
[1738072169245,0.82946358,671.89,671.02,0.2980537]
[1738072169443,0.82946358,671.88,671.02,0.2980537]
[1738072169643,0.82946358,671.87,671.02,0.2980537]
[1738072169844,0.82946358,671.86,671.02,0.2980537]
[1738072170039,0.82946358,671.85,671.02,0.2980537]
[1738072170248,0.82946358,671.84,671.02,0.2980537]
[1738072170449,1.98810938,671.83,671.02,0.2980537]
[1738072170749,0.82946358,671.82,671.02,0.2980537]
[1738072170947,0.82946358,671.81,671.02,0.2980537]
[1738072171246,0.82946358,671.8,671.02,0.2980537]
[1738072171449,0.82946358,671.79,671.02,0.2980537]
[1738072171656,0.8291502,671.78,671.02,0.2980537]
[1738072171844,0.8291502,671.77,671.02,0.2980537]
[1738072172040,0.8291502,671.76,671.02,0.2980537]
[1738072172342,0.8291502,671.75,671.02,0.2980537]
[1738072172542,0.8291502,671.74,671.02,0.2980537]
[1738072172742,0.8291502,671.73,671.02,0.2980537]
[1738072172943,0.8291502,671.72,671.02,0.2980537]
[1738072173143,0.8291502,671.71,671.02,0.2980537]
[1738072173349,0.29755705,672.14,671.02,0.2980537]
[1738072173547,1.98774421,672.13,671.02,0.2980537]
[1738072173747,1.98774421,672.12,671.02,0.2980537]
[1738072173947,1.98774421,672.11,671.02,0.2980537]
[1738072174147,1.98774421,672.1,671.02,0.2980537]
[1738072174343,2.86225147,672.09,671.02,0.2980537]
[1738072174548,1.98774421,672.08,671.02,0.2980537]
[1738072174849,1.98774421,672.07,671.02,0.2980537]
[1738072175046,1.98774421,672.06,671.02,0.2980537]
[1738072175251,1.98774421,672.05,671.02,0.2980537]
[1738072175448,1.98774421,672.04,671.02,0.2980537]
[1738072175644,1.98774421,672.03,671.02,0.2980537]
[1738072175848,1.98774421,672.02,671.02,0.2980537]
[1738072176049,1.98787802,672.01,671.02,0.2980537]
[1738072176251,1.98787802,672.0,671.02,0.2980537]
[1738072176447,2.86238528,671.99,671.02,0.2980537]
[1738072176645,1.98787802,671.98,671.02,0.2980537]
[1738072176955,2.86238528,671.97,671.02,0.2980537]
[1738072177150,1.98787802,671.96,671.02,0.2980537]
[1738072177354,1.98841815,671.95,671.02,0.2980537]
[1738072177551,0.87450726,671.97,671.02,0.2980537]
[1738072177552,0.82926226,671.94,671.02,0.2980537]
[1738072177753,0.82926226,671.93,671.02,0.2980537]
[1738072177950,0.82926226,671.92,671.22,1.04687993]
[1738072178253,0.82926226,671.91,671.22,1.04687993]
[1738072178444,0.82926226,671.9,671.22,1.04687993]
[1738072178643,0.82926226,671.89,671.22,1.04687993]
[1738072178854,0.82926226,671.88,671.22,1.04687993]
[1738072179049,0.82926226,671.87,671.22,1.04687993]
[1738072179251,0.29755705,672.14,671.22,1.04687993]
[1738072179452,1.99005962,672.13,671.22,1.04687993]
[1738072179646,1.99005962,672.12,671.22,1.04687993]
[1738072179852,1.99005962,672.11,671.22,1.04687993]
[1738072180053,1.99005962,672.1,671.22,1.04687993]
[1738072180347,0.83008914,672.09,671.22,1.04687993]
[1738072180553,0.83008914,672.08,671.22,1.04687993]
[1738072180752,0.83008914,672.07,671.22,1.04687993]
[1738072180955,0.83008914,672.06,671.18,1.04687993]
[1738072181152,1.55392407,672.54,671.19,0.29797821]
[1738072181153,0.83008914,672.05,671.19,0.29797821]
[1738072181454,0.83008914,672.04,671.19,0.29797821]
[1738072181653,0.83008914,672.03,671.19,0.29797821]
[1738072181853,0.83008914,672.02,671.19,0.29797821]
[1738072182053,0.83008914,672.01,671.19,0.29797821]
[1738072182254,0.83008914,672.0,671.19,0.29797821]
[1738072182452,0.83008914,671.99,671.19,0.29797821]
[1738072182655,0.83008914,671.98,671.19,0.29797821]
[1738072182854,0.83008914,671.97,671.19,0.29797821]
[1738072183159,0.83008914,671.96,671.19,0.29797821]
[1738072183357,0.83008914,671.95,671.19,0.29797821]
[1738072183555,1.55392407,672.54,671.19,0.29797821]
[1738072183758,2.26437388,672.53,671.4,1.04687993]
[1738072184056,2.26437388,672.52,671.4,1.04687993]
[1738072184250,1.99095212,672.51,671.4,1.04687993]
[1738072184453,2.26437938,672.5,671.4,1.04687993]
[1738072184653,1.99095212,672.49,671.4,1.04687993]
[1738072184850,1.99095212,672.48,671.4,1.04687993]
[1738072185056,1.99095212,672.47,671.4,1.04687993]
[1738072185256,1.99095212,672.46,671.41,0.29788057]
[1738072185456,1.99095212,672.45,671.41,0.29788057]
[1738072185758,1.99095212,672.44,671.41,0.29788057]
[1738072185958,1.99095212,672.43,671.41,0.29788057]
[1738072186159,1.99095212,672.42,671.41,0.29788057]
[1738072186360,0.83045937,672.41,671.41,1.3447605]
[1738072186554,0.83045937,672.4,671.41,1.3447605]
[1738072186758,0.83045937,672.39,671.41,1.3447605]
[1738072186959,0.83045937,672.38,671.41,1.3447605]
[1738072187160,0.83045937,672.37,671.41,1.3447605]
[1738072187357,0.83045937,672.36,671.41,1.3447605]
[1738072187556,0.83045937,672.35,671.41,1.3447605]
[1738072187758,0.83045937,672.34,671.41,1.3447605]
[1738072187953,0.83045937,672.33,671.41,1.3447605]
[1738072188160,0.83045937,672.32,671.41,1.3447605]
[1738072188455,0.83045937,672.31,671.41,1.3447605]
[1738072188656,0.83045937,672.3,671.41,1.3447605]
[1738072188854,0.83045937,672.29,671.41,1.3447605]
[1738072189157,0.83045937,672.28,671.44,1.04687993]
[1738072189461,0.83045937,672.27,671.45,0.29786283]
[1738072189660,0.83045937,672.26,671.45,0.29786283]
[1738072189960,0.82993473,672.25,671.45,0.29786283]
[1738072190159,0.82993473,672.24,671.45,0.29786283]
[1738072190358,0.82993473,672.23,671.45,0.29786283]
[1738072190559,1.55329405,672.8,671.45,0.29786283]
[1738072190763,2.26265367,672.79,671.45,0.29786283]
[1738072190962,2.26265367,672.78,671.45,0.29786283]
[1738072191277,2.26265367,672.77,671.45,0.29786283]
[1738072191463,2.26265061,672.76,671.45,0.29786283]
[1738072191761,3.13748145,672.75,671.45,0.29786283]
[1738072191963,1.98933307,672.74,671.45,0.29786283]
[1738072192164,1.98933307,672.73,671.45,0.29786283]
[1738072192478,1.98933307,672.72,671.45,0.29786283]
[1738072192661,1.98933307,672.71,671.45,0.29786283]
[1738072192864,2.86416391,672.7,671.45,0.29786283]
[1738072193158,2.86416391,672.69,671.45,0.29786283]
[1738072193356,1.98933307,672.68,671.45,0.29786283]
[1738072193560,2.86416391,672.67,671.45,0.29786283]
[1738072193755,1.98933307,672.66,671.45,0.29786283]
[1738072193959,1.98855301,672.65,671.45,0.29786283]
[1738072194156,1.98855301,672.64,671.45,0.29786283]
[1738072194365,1.98855301,672.63,671.45,0.29786283]
[1738072194661,2.86338385,672.62,671.45,0.29786283]
[1738072194863,1.98855301,672.61,671.45,0.29786283]
[1738072195061,1.98855301,672.6,671.45,0.29786283]
[1738072195265,1.98855301,672.59,671.45,0.29786283]
[1738072195616,1.98855301,672.58,671.45,0.29786283]
[1738072195757,1.98855301,672.57,671.45,0.29786283]
[1738072195964,1.98855301,672.56,671.45,0.29786283]
[1738072196162,1.98855301,672.55,671.45,0.29786283]
[1738072196362,1.98855301,672.54,671.45,0.29786283]
[1738072196562,2.86338385,672.53,671.45,0.29786283]
[1738072196761,1.98855301,672.52,671.45,0.29786283]
[1738072196961,1.98855301,672.51,671.45,0.29786283]
[1738072197163,1.98855301,672.5,671.45,0.29786283]
[1738072197357,2.86338385,672.49,671.45,0.29786283]
[1738072197559,1.98855301,672.48,671.45,0.29786283]
[1738072197758,1.98855301,672.47,671.45,0.29786283]
[1738072197962,1.98855301,672.46,671.45,0.29786283]
[1738072198163,1.98855301,672.45,671.45,0.29786283]
[1738072198359,1.98855301,672.44,671.45,0.29786283]
[1738072198559,0.82977785,672.43,671.45,0.29786283]
[1738072198763,0.82977785,672.42,671.45,0.29786283]
[1738072199061,0.82977785,672.41,671.45,0.29786283]
[1738072199266,0.82977785,672.4,671.45,0.29786283]
[1738072199461,0.82977785,672.39,671.45,0.29786283]
[1738072199762,0.82977785,672.38,671.45,0.29786283]
[1738072199962,0.82870155,672.37,671.45,0.29786283]
[1738072200161,0.82870155,672.36,671.45,0.29786283]
[1738072200357,0.82870155,672.35,671.45,0.29786283]
[1738072200560,0.82870155,672.34,671.45,0.29786283]
[1738072200761,0.82870155,672.33,671.45,0.29786283]
[1738072200960,0.82870155,672.32,671.45,0.29786283]
[1738072201165,0.82870155,672.31,671.45,0.29786283]
[1738072201467,0.82870155,672.3,671.45,0.29786283]
[1738072201665,0.82870155,672.29,671.45,0.29786283]
[1738072201865,0.82870155,672.28,671.45,0.29786283]
[1738072202165,0.82870155,672.27,671.45,0.29786283]
[1738072202465,0.82870155,672.26,671.45,0.29786283]
[1738072202661,0.82870155,672.25,671.45,0.29786283]
[1738072202966,0.82870155,672.24,671.45,0.29786283]
[1738072203165,0.82870155,672.23,671.45,0.29786283]
[1738072203372,0.82804403,672.22,671.45,0.29786283]
[1738072203673,1.55357721,672.75,671.45,0.29786283]
[1738072203868,0.27334698,672.74,671.45,0.29786283]
[1738072204169,1.98517285,672.73,671.45,0.29786283]
[1738072204371,1.98517285,672.72,671.45,0.29786283]
[1738072204565,1.98517285,672.71,671.45,0.29786283]
[1738072204768,1.98517285,672.7,671.45,0.29786283]
[1738072204967,1.98517285,672.69,671.45,0.29786283]
[1738072205168,1.98517285,672.68,671.45,0.29786283]
[1738072205371,1.98517285,672.67,671.45,0.29786283]
[1738072205564,2.85836914,672.66,671.45,0.29786283]
[1738072205769,1.98517285,672.65,671.45,0.29786283]
[1738072205967,1.98517285,672.64,671.45,0.29786283]
[1738072206172,1.98517285,672.63,671.45,0.29786283]
[1738072206471,1.98517285,672.62,671.45,0.29786283]
[1738072206671,0.87319629,672.64,671.45,0.29786283]
[1738072206672,1.98517285,672.61,671.45,0.29786283]
[1738072206869,1.98517285,672.6,671.45,0.29786283]
[1738072207172,2.85836914,672.59,671.45,0.29786283]
[1738072207373,1.98517285,672.58,671.45,0.29786283]
[1738072207573,2.85836914,672.57,671.45,0.29786283]
[1738072207765,1.98517285,672.56,671.45,0.29786283]
[1738072208072,1.98517285,672.55,671.45,0.29786283]
[1738072208266,1.98517285,672.54,671.45,0.29786283]
[1738072208469,1.98517285,672.53,671.45,0.29786283]
[1738072208772,1.98517285,672.52,671.45,0.29786283]
[1738072209112,2.25863224,672.51,671.45,0.29786283]
[1738072209274,2.25863224,672.5,671.45,0.29786283]
[1738072209472,3.13182853,672.49,671.45,0.29786283]
[1738072209668,2.2586422,672.48,671.45,0.29786283]
[1738072209873,2.259197,672.47,671.45,0.29786283]
[1738072210065,2.259197,672.46,671.45,0.29786283]
[1738072210266,1.98572765,672.45,670.99,1.04687993]
[1738072210476,2.85892394,672.44,671.0,0.29806259]
[1738072210666,1.98572765,672.43,671.0,0.29806259]
[1738072210866,1.55357721,672.75,671.0,0.29806259]
[1738072210867,2.85892394,672.42,671.0,0.29806259]
[1738072211175,1.98572765,672.41,671.0,1.34494252]
[1738072211376,1.98572765,672.4,671.0,1.34494252]
[1738072211567,1.98572765,672.39,671.0,1.34494252]
[1738072211770,1.98572765,672.38,671.01,0.29805815]
[1738072211966,0.87319629,672.42,671.01,0.29805815]
[1738072212470,1.98629871,672.41,671.01,0.29805815]
[1738072212671,1.15777741,672.4,671.01,0.29805815]
[1738072212870,1.98629405,672.39,671.01,0.29805815]
[1738072213072,1.98629405,672.38,671.01,0.29805815]
[1738072213274,1.15777741,672.38,671.01,0.29805815]
[1738072213475,0.87319629,672.42,671.01,0.29805815]
[1738072213476,1.98619064,672.37,671.01,0.29805815]
[1738072213669,0.82843757,672.36,671.01,0.29805815]
[1738072213873,1.98609106,672.35,671.01,0.29805815]
[1738072214076,1.98609106,672.34,671.01,0.29805815]
[1738072214297,0.87319629,672.38,671.01,0.29805815]
[1738072214298,1.98609106,672.33,671.01,0.29805815]
[1738072214472,1.98609106,672.32,671.01,0.29805815]
[1738072214675,1.98609106,672.31,671.08,1.04687993]
[1738072214874,1.98609106,672.3,671.09,0.29802261]
[1738072215176,2.85928735,672.29,671.09,0.29802261]